fUST/lending_fUST_20260107
["ID","MTS","AMOUNT","RATE_DAILY","PERIOD"]
[400571788,1767729038864,-844.27522921,0.00012623,2]
[400571790,1767729038875,-844.27522921,0.00012623,2]
[400571792,1767729038887,-844.27522921,0.00012623,2]
[400571794,1767729038898,-852.7144162,0.00012625,2]
[400571797,1767729038909,-3807.21613033,0.000131,2]
[400571799,1767729038919,-220.223,0.00013167,2]
[400571801,1767729038931,-184.7045463,0.00013167,2]
[400571803,1767729038941,-151.0,0.000132,2]
[400571805,1767729038953,-151.0,0.000132,2]
[400571808,1767729038965,-151.0,0.000132,2]
[400571810,1767729038976,-151.0,0.000132,2]
[400571812,1767729038987,-151.0,0.000132,2]
[400571814,1767729038998,-151.0,0.000132,2]
[400571816,1767729039011,-151.0,0.000132,2]
[400571819,1767729039023,-151.0,0.000132,2]
[400571821,1767729039034,-151.0,0.000132,2]
[400571823,1767729039046,-151.0,0.000132,2]
[400571825,1767729039057,-151.0,0.000132,2]
[400571827,1767729039068,-151.0,0.000132,2]
[400571829,1767729039079,-151.0,0.000132,2]
[400571832,1767729039091,-151.0,0.000132,2]
[400571834,1767729039102,-151.0,0.000132,2]
[400571836,1767729039113,-151.0,0.000132,2]
[400571838,1767729039124,-500.0,0.00013273,2]
[400571840,1767729039136,-500.0,0.00013273,2]
[400571843,1767729039148,-500.0,0.00013273,2]
[400571845,1767729039159,-500.0,0.00013273,2]
[400571847,1767729039170,-500.0,0.00013273,2]
[400571849,1767729039181,-500.0,0.00013273,2]
[400571851,1767729039193,-500.75815525,0.00013273,2]
[400571853,1767729039204,-500.0,0.00013273,2]
[400571855,1767729039215,-500.0,0.00013273,2]
[400571858,1767729039226,-500.45942406,0.00013273,2]
[400571860,1767729039237,-167.48106999,0.00013273,2]
[400571862,1767729039248,-500.0,0.00013273,2]
[400571864,1767729039259,-500.0,0.00013273,2]
[400571866,1767729039270,-161.85370912,0.00013273,2]
[400571868,1767729039281,-500.0,0.00013273,2]
[400571870,1767729039293,-500.0,0.00013273,2]
[400571873,1767729039305,-500.0,0.00013273,2]
[400571875,1767729039317,-500.0,0.00013273,2]
[400571877,1767729039329,-500.0,0.00013273,2]
[400571879,1767729039340,-500.0,0.00013273,2]
[400571881,1767729039351,-500.0,0.00013273,2]
[400571884,1767729039363,-500.0,0.00013273,2]
[400571886,1767729039373,-465.83435132,0.00013273,2]
[400571888,1767729039382,-502.95005986,0.00013273,2]
[400571890,1767729039392,-500.0,0.00013273,2]
[400571892,1767729039401,-500.0,0.00013273,2]
[400571894,1767729039410,-500.0,0.00013273,2]
[400571896,1767729039419,-500.0,0.00013273,2]
[400571898,1767729039428,-500.0,0.00013273,2]
[400571900,1767729039437,-500.0,0.00013273,2]
[400571902,1767729039446,-500.0,0.00013273,2]
[400571904,1767729039456,-500.0,0.00013273,2]
[400571906,1767729039466,-500.0,0.00013273,2]
[400571908,1767729039476,-500.0,0.00013273,2]
[400571910,1767729039485,-500.93094912,0.00013273,2]
[400571933,1767729039663,-500.0,0.00013273,2]
[400571935,1767729039678,-500.0,0.00013273,2]
[400571937,1767729039688,-606.03605592,0.00013273,2]
[400571939,1767729039696,-500.0,0.00013273,2]
[400571941,1767729039705,-500.0,0.00013273,2]
[400571943,1767729039714,-171.59960392,0.00013273,2]
[400571945,1767729039724,-500.0,0.00013273,2]
[400571947,1767729039733,-159.32617446,0.00013273,2]
[400571949,1767729039743,-500.0,0.00013273,2]
[400571952,1767729039755,-500.49523279,0.00013273,2]
[400571953,1767729039765,-536.41268697,0.00013273,2]
[400571956,1767729039774,-500.0,0.00013273,2]
[400571957,1767729039783,-500.0,0.00013273,2]
[400571959,1767729039792,-500.0,0.00013273,2]
[400571961,1767729039801,-500.0,0.00013273,2]
[400571963,1767729039810,-500.0,0.00013273,2]
[400571965,1767729039823,-500.0,0.00013273,2]
[400571967,1767729039833,-500.0,0.00013273,2]
[400571969,1767729039842,-500.0,0.00013273,2]
[400571971,1767729039851,-500.0,0.00013273,2]
[400571973,1767729039861,-500.0,0.00013273,2]
[400571975,1767729039870,-500.89572759,0.00013273,2]
[400571977,1767729039879,-500.0,0.00013273,2]
[400571979,1767729039889,-500.0,0.00013273,2]
[400571981,1767729039899,-185.45250914,0.00013273,2]
[400571983,1767729039908,-500.0,0.00013273,2]
[400571985,1767729039918,-268.70604187,0.00013273,2]
[400571987,1767729039928,-500.0,0.00013273,2]
[400571989,1767729039937,-210.68917911,0.00013273,2]
[400571991,1767729039947,-283.37004819,0.00013273,2]
[400571993,1767729039957,-165.53460267,0.00013273,2]
[400571995,1767729039967,-500.0,0.00013273,2]
[400571997,1767729039977,-500.0,0.00013273,2]
[400571999,1767729039987,-500.0,0.00013273,2]
[400572001,1767729039997,-232.41734948,0.00013273,2]
[400572003,1767729040010,-420.0,0.00013528,2]
[400572005,1767729040019,-420.0,0.00013528,2]
[400572007,1767729040029,-420.0,0.00013528,2]
[400572009,1767729040038,-1200.0,0.00013559,2]
[400572011,1767729040047,-420.0,0.00013561,2]
[400572013,1767729040056,-300.87485564,0.00013585,2]
[400572015,1767729040065,-300.0,0.00013673,2]
[400572017,1767729040075,-500.0,0.00013698,2]
[400572019,1767729040084,-500.0,0.00013698,2]
[400572021,1767729040093,-500.0,0.00013698,2]
[400572023,1767729040102,-500.0,0.00013698,2]
[400572025,1767729040111,-500.0,0.00013698,2]
[400572027,1767729040119,-500.0,0.00013698,2]
[400572029,1767729040128,-580.76,0.00013698,2]
[400572031,1767729040137,-2667.21,0.00013698,2]
[400572033,1767729040146,-2667.21,0.00013698,2]
[400572036,1767729040155,-2667.21,0.00013698,2]
[400572038,1767729040164,-2667.21,0.00013698,2]
[400572040,1767729040174,-2667.21,0.00013698,2]
[400572042,1767729040183,-2667.21,0.00013698,2]
[400572045,1767729040193,-500.0,0.00013698,2]
[400572048,1767729040203,-500.0,0.00013698,2]
[400572050,1767729040213,-361.95914229,0.00013698,2]
[400572052,1767729040222,-500.0,0.00013698,2]
[400572054,1767729040231,-500.0,0.00013698,2]
[400572056,1767729040240,-577.08,0.00013698,2]
[400572058,1767729040249,-466.89772029,0.00013698,2]
[400572060,1767729040259,-1121.524412,0.00013699,2]
[400572062,1767729040268,-1000.0,0.00013699,2]
[400572064,1767729040277,-500.0,0.00013699,2]
[400572066,1767729040287,-500.0,0.00013699,2]
[400572068,1767729040295,-500.0,0.00013699,2]
[400572070,1767729040304,-500.0,0.00013699,2]
[400572072,1767729040313,-500.0,0.00013699,2]
[400572073,1767729040322,-500.0,0.00013699,2]
[400572075,1767729040332,-500.0,0.00013699,2]
[400572077,1767729040341,-500.0,0.00013699,2]
[400572079,1767729040351,-500.0,0.00013699,2]
[400572082,1767729040360,-500.0,0.00013699,2]
[400572084,1767729040370,-500.71714379,0.00013699,2]
[400572086,1767729040380,-500.0,0.00013699,2]
[400572088,1767729040389,-504.37236451,0.00013699,2]
[400572090,1767729040398,-500.0,0.00013699,2]
[400572092,1767729040407,-500.0,0.00013699,2]
[400572094,1767729040417,-500.0,0.00013699,2]
[400572096,1767729040426,-500.0,0.00013699,2]
[400572098,1767729040436,-500.0,0.00013699,2]
[400572100,1767729040446,-500.0,0.00013699,2]
[400572102,1767729040455,-500.0,0.00013699,2]
[400572104,1767729040465,-500.0,0.00013699,2]
[400572106,1767729040474,-500.0,0.00013699,2]
[400572108,1767729040483,-526.06901587,0.00013699,2]
[400572109,1767729040492,-500.0,0.00013699,2]
[400572111,1767729040501,-500.0,0.00013699,2]
[400572113,1767729040510,-343.49392703,0.00013699,2]
[400572115,1767729040520,-500.0,0.00013699,2]
[400572117,1767729040529,-500.0,0.00013699,2]
[400572119,1767729040538,-501.00450759,0.00013699,2]
[400572121,1767729040548,-500.0,0.00013699,2]
[400572123,1767729040557,-500.0,0.00013699,2]
[400572125,1767729040565,-634.09365022,0.00013699,2]
[400572127,1767729040574,-500.0,0.00013699,2]
[400572129,1767729040583,-500.0,0.00013699,2]
[400572131,1767729040593,-500.0,0.00013699,2]
[400572133,1767729040602,-500.7233053,0.00013699,2]
[400572135,1767729040611,-500.0,0.00013699,2]
[400572137,1767729040621,-500.17698717,0.00013699,2]
[400572139,1767729040630,-500.0,0.00013699,2]
[400572140,1767729040639,-500.74532212,0.00013699,2]
[400572143,1767729040648,-500.0,0.00013699,2]
[400572145,1767729040658,-500.0,0.00013699,2]
[400572147,1767729040667,-500.0,0.00013699,2]
[400572149,1767729040681,-500.0,0.00013699,2]
[400572151,1767729040690,-500.0,0.00013699,2]
[400572153,1767729040699,-500.0,0.00013699,2]
[400572154,1767729040708,-500.0,0.00013699,2]
[400572157,1767729040718,-500.0,0.00013699,2]
[400572158,1767729040727,-500.93963039,0.00013699,2]
[400572160,1767729040736,-351.22077635,0.00013699,2]
[400572162,1767729040746,-3807.21613029,0.00013766,2]
[400572164,1767729040754,-2667.21,0.0001382,2]
[400572166,1767729040764,-500.66535863,0.00013821,2]
[400572168,1767729040773,-500.66277805,0.00013821,2]
[400572170,1767729040782,-1000.0,0.00013821,2]
[400572172,1767729040791,-1000.0,0.00013821,2]
[400572174,1767729040802,-500.0,0.00013821,2]
[400572176,1767729040811,-500.0,0.00013821,2]
[400572178,1767729040825,-500.0,0.00013821,2]
[400572180,1767729040834,-500.0,0.00013821,2]
[400572182,1767729040848,-1000.0,0.00013821,2]
[400572184,1767729040859,-1000.0,0.00013821,2]
[400572186,1767729040868,-1000.0,0.00013821,2]
[400572188,1767729040877,-492.73052858,0.00013821,2]
[400572190,1767729040888,-500.0,0.00013821,2]
[400572192,1767729040897,-1000.0,0.00013821,2]
[400572194,1767729040906,-1000.0,0.00013821,2]
[400572196,1767729040915,-500.0,0.00013821,2]
[400572198,1767729040924,-1000.0,0.00013821,2]
[400572200,1767729040934,-1000.0,0.00013821,2]
[400572202,1767729040943,-1000.0,0.00013821,2]
[400572204,1767729040952,-500.0,0.00013821,2]
[400572206,1767729040962,-1002.10613281,0.00013821,2]
[400572208,1767729040971,-1000.0,0.00013821,2]
[400572210,1767729040981,-1000.0,0.00013821,2]
[400572212,1767729040991,-800.04302299,0.00013821,2]
[400572214,1767729041000,-677.69550258,0.00013821,2]
[400572216,1767729041011,-588.2860466,0.00013821,2]
[400572218,1767729041020,-1000.0,0.00013821,2]
[400572220,1767729041030,-1000.0,0.00013821,2]
[400572222,1767729041039,-1000.0,0.00013821,2]
[400572224,1767729041048,-1000.0,0.00013821,2]
[400572226,1767729041057,-825.41046697,0.00013821,2]
[400572228,1767729041068,-240.74399382,0.00013821,2]
[400572230,1767729041077,-906.18034584,0.00013821,2]
[400572232,1767729041087,-1000.0,0.00013821,2]
[400572234,1767729041095,-494.63820199,0.00013821,2]
[400572236,1767729041104,-775.69590667,0.00013821,2]
[400572238,1767729041114,-500.0,0.00013821,2]
[400572240,1767729041123,-1000.0,0.00013821,2]
[400572242,1767729041132,-500.0,0.00013821,2]
[400572244,1767729041142,-1000.0,0.00013821,2]
[400572246,1767729041151,-1000.0,0.00013821,2]
[400572248,1767729041160,-12838.77162275,0.0001386,2]
[400572250,1767729041170,-300.0,0.00013972,2]
[400572252,1767729041179,-300.0,0.00013972,2]
[400572254,1767729041188,-300.0,0.00013972,2]
[400572256,1767729041197,-300.0,0.00013972,2]
[400572258,1767729041206,-163.60914411,0.00013973,2]
[400572260,1767729041216,-177.55379362,0.00014175,2]
[400572262,1767729041226,-227.93389726,0.00014175,2]
[400572264,1767729041236,-600.0,0.00014221,2]
[400572267,1767729041247,-1000.0,0.00014247,2]
[400572268,1767729041256,-1000.0,0.00014247,2]
[400572269,1767729041265,-541.12357041,0.00014247,2]
[400572270,1767729041275,-920.06493089,0.00014247,2]
[400572271,1767729041285,-1000.0,0.00014247,2]
[400572272,1767729041295,-1000.0,0.00014247,2]
[400572273,1767729041304,-1001.57471188,0.00014247,2]
[400572274,1767729041314,-1000.0,0.00014247,2]
[400572275,1767729041323,-512.33435394,0.00014247,2]
[400572276,1767729041332,-1000.0,0.00014247,2]
[400572277,1767729041341,-501.56829016,0.00014247,2]
[400572278,1767729041350,-885.64023148,0.00014247,2]
[400572279,1767729041359,-1000.0,0.00014247,2]
[400572280,1767729041368,-1000.0,0.00014247,2]
[400572281,1767729041377,-1004.33287174,0.00014247,2]
[400572282,1767729041386,-1000.0,0.00014247,2]
[400572283,1767729041395,-888.07347701,0.00014247,2]
[400572284,1767729041404,-520.45931442,0.00014247,2]
[400572285,1767729041413,-500.84600982,0.00014247,2]
[400572286,1767729041423,-500.2666594,0.00014247,2]
[400572287,1767729041432,-580.83767681,0.00014247,2]
[400572288,1767729041440,-500.84667986,0.00014247,2]
[400572289,1767729041449,-1000.81877837,0.00014247,2]
[400572290,1767729041458,-500.76143899,0.00014247,2]
[400572291,1767729041467,-500.61401424,0.00014247,2]
[400572292,1767729041475,-502.04480355,0.00014247,2]
[400572293,1767729041484,-1000.0,0.00014247,2]
[400572295,1767729041495,-1000.54517436,0.00014247,2]
[400572297,1767729041504,-1000.0,0.00014247,2]
[400572299,1767729041513,-943.89072638,0.00014247,2]
[400572301,1767729041523,-1000.0,0.00014247,2]
[400572303,1767729041532,-1000.0,0.00014247,2]
[400572305,1767729041540,-501.17135178,0.00014247,2]
[400572307,1767729041550,-1001.0386878,0.00014247,2]
[400572309,1767729041558,-1000.0,0.00014247,2]
[400572311,1767729041567,-1000.0,0.00014247,2]
[400572313,1767729041577,-500.68900305,0.00014247,2]
[400572315,1767729041586,-2667.21,0.00014368,2]
[400572317,1767729041596,-478.35295088,0.00014368,2]
[400572319,1767729041605,-1500.0,0.00014368,2]
[400572321,1767729041614,-1500.0,0.00014368,2]
[400572323,1767729041624,-1500.0,0.00014368,2]
[400572325,1767729041633,-1002.25371869,0.00014368,2]
[400572327,1767729041642,-500.0,0.00014368,2]
[400572329,1767729041651,-1500.0,0.00014368,2]
[400572331,1767729041660,-952.94469565,0.00014368,2]
[400572333,1767729041669,-861.95620737,0.00014368,2]
[400572335,1767729041679,-1500.0,0.00014368,2]
[400572337,1767729041688,-1500.0,0.00014368,2]
[400572339,1767729041698,-1500.0,0.00014368,2]
[400572341,1767729041707,-1500.0,0.00014368,2]
[400572343,1767729041716,-1500.0,0.00014368,2]
[400572345,1767729041725,-1198.64498703,0.00014368,2]
[400572347,1767729041735,-1500.0,0.00014368,2]
[400572349,1767729041744,-1500.0,0.00014368,2]
[400572352,1767729041754,-1500.0,0.00014368,2]
[400572354,1767729041763,-3807.21613029,0.00014432,2]
[400572355,1767729041772,-272.8580354,0.00014614,2]
[400572357,1767729041781,-900.0,0.00014768,2]
[400572359,1767729041791,-1500.0,0.00014795,2]
[400572361,1767729041800,-1000.0,0.00014795,2]
[400572363,1767729041809,-1500.0,0.00014795,2]
[400572365,1767729041822,-1000.0,0.00014795,2]
[400572367,1767729041831,-1500.0,0.00014795,2]
[400572369,1767729041840,-1033.7772006,0.00014795,2]
[400572371,1767729041849,-1500.0,0.00014795,2]
[400572373,1767729041859,-1500.0,0.00014795,2]
[400572375,1767729041868,-1500.0,0.00014795,2]
[400572377,1767729041877,-1602.91356518,0.00014795,2]
[400572379,1767729041887,-587.0,0.00014845,2]
[400572381,1767729041897,-180.0,0.00014845,2]
[400572383,1767729041907,-500.0,0.00014855,2]
[400572385,1767729041916,-500.0,0.00014855,2]
[400572387,1767729041925,-500.0,0.00014855,2]
[400572389,1767729041935,-500.0,0.00014855,2]
[400572391,1767729041943,-500.0,0.00014855,2]
[400572393,1767729041952,-500.0,0.00014855,2]
[400572395,1767729041961,-500.0,0.00014855,2]
[400572397,1767729041970,-500.0,0.00014855,2]
[400572398,1767729041979,-500.0,0.00014855,2]
[400572400,1767729041988,-500.0,0.00014855,2]
[400572402,1767729041998,-500.0,0.00014855,2]
[400572404,1767729042009,-500.0,0.00014855,2]
[400572407,1767729042019,-500.0,0.00014855,2]
[400572408,1767729042028,-500.0,0.00014855,2]
[400572410,1767729042038,-500.0,0.00014855,2]
[400572412,1767729042047,-500.0,0.00014855,2]
[400572414,1767729042058,-511.14869574,0.00014855,2]
[400572416,1767729042067,-100000.0,0.00014882,2]
[400572418,1767729042076,-2667.21,0.00014916,2]
[400572420,1767729042085,-565.47530985,0.00014916,2]
[400572422,1767729042094,-500.0,0.00014916,2]
[400572424,1767729042103,-1500.0,0.00014916,2]
[400572426,1767729042113,-2000.0,0.00014916,2]
[400572428,1767729042122,-1598.44792801,0.00014916,2]
[400572430,1767729042134,-1055.85922892,0.00014916,2]
[400572432,1767729042143,-2000.0,0.00014916,2]
[400572434,1767729042152,-603.20077108,0.00014916,2]
[400572436,1767729042162,-2000.0,0.00014916,2]
[400572438,1767729042171,-2000.0,0.00014916,2]
[400572440,1767729042181,-185.0,0.00014917,2]
[400572442,1767729042190,-1000.0,0.00015,2]
[400572444,1767729042199,-293.17371147,0.00015022,2]
[400572446,1767729042209,-204.749226,0.00015068,2]
[400572448,1767729042218,-3807.21613029,0.00015098,2]
[400572450,1767729042227,-1200.0,0.00015316,2]
[400572452,1767729042235,-2667.21,0.00015341,2]
[400572454,1767729042245,-639.63755637,0.00015342,2]
[400572456,1767729042256,-2000.0,0.00015342,2]
[400572458,1767729042265,-2000.0,0.00015342,2]
[400572460,1767729042275,-2000.0,0.00015342,2]
[400572462,1767729042284,-2000.0,0.00015342,2]
[400572464,1767729042294,-1541.38457236,0.00015464,2]
[400572466,1767729042304,-2500.0,0.00015464,2]
[400572468,1767729042315,-2500.0,0.00015464,2]
[400572470,1767729042325,-346.77102006,0.00015585,2]
[400572472,1767729042335,-2667.21,0.00015752,2]
[400572474,1767729042345,-3807.21613029,0.00015764,2]
[400572476,1767729042354,-1500.0,0.00015864,2]
[400572478,1767729042363,-2500.0,0.0001589,2]
[400572480,1767729042373,-2500.0,0.0001589,2]
[400572482,1767729042383,-2631.09579763,0.0001589,2]
[400572485,1767729042392,-2500.0,0.0001589,2]
[400572488,1767729042401,-12838.0,0.00015939,2]
[400572490,1767729042412,-3000.0,0.00016012,2]
[400572493,1767729042421,-3000.0,0.00016012,2]
[400572496,1767729042431,-1041.66666667,0.00016192,2]
[400572498,1767729042440,-2667.21,0.0001623,2]
[400572500,1767729042450,-823.0,0.00016292,2]
[400572502,1767729042459,-1800.0,0.00016412,2]
[400572504,1767729042468,-3000.0,0.00016438,2]
[400572506,1767729042477,-3000.0,0.00016438,2]
[400572509,1767729042487,-3000.0,0.00016438,2]
[400572512,1767729042497,-370.43034896,0.00016482,5]
[400572514,1767729042506,-3500.0,0.0001656,2]
[400572516,1767729042516,-3500.0,0.0001656,2]
[400572518,1767729042525,-2667.21,0.00016896,2]
[400572520,1767729042534,-1328.66900406,0.0001696,2]
[400572522,1767729042543,-3500.0,0.00016986,2]
[400572524,1767729042552,-1006.10461326,0.00016986,2]
[400572526,1767729042561,-838.08885357,0.00016986,2]
[400572528,1767729042570,-2667.21,0.00016989,2]
[400572530,1767729042579,-2667.21,0.00016989,2]
[400572532,1767729042588,-2667.21,0.00016989,2]
[400572534,1767729042597,-2667.21,0.00016989,2]
[400572536,1767729042607,-2667.21,0.00016989,2]
[400572538,1767729042616,-659.08911514,0.00017026,2]
[400572540,1767729042626,-3387.16845353,0.00017108,2]
[400572542,1767729042635,-4056.89714871,0.00017108,2]
[400572544,1767729042644,-4000.0,0.00017534,2]
[400572546,1767729042654,-392.66718448,0.00017585,2]
[400572548,1767729042665,-186.5,0.0001759,2]
[400572550,1767729042674,-1152.0,0.00017879,2]
[400572552,1767729042683,-458.06077786,0.00017942,7]
[400572554,1767729042692,-2667.21,0.00017999,2]
[400572556,1767729042701,-2667.21,0.00017999,2]
[400572558,1767729042710,-2667.21,0.00017999,2]
[400572560,1767729042720,-2667.21,0.00017999,2]
[400572562,1767729042729,-2667.21,0.00017999,2]
[400572564,1767729042738,-2667.38869488,0.00017999,2]
[400572566,1767729042747,-3418.71659724,0.00018082,2]
[400572568,1767729042757,-204.749226,0.00018493,2]
[400572570,1767729042766,-900.0,0.00019178,2]
[400572572,1767729042775,-2827.11,0.000192,2]
[400572574,1767729042785,-22465.31,0.000192,2]
[400572588,1767729042905,-167.75,0.000192,2]
[400572590,1767729042915,-284.75,0.000192,2]
[400572592,1767729042924,-240.04,0.000192,2]
[400572594,1767729042933,-186.5,0.00019264,2]
[400572596,1767729042943,-554.95640908,0.00019402,10]
[400572598,1767729042951,-438.5633489,0.00019585,2]
[400572600,1767729042961,-995.0,0.0001962,2]
[400572602,1767729042971,-648.93473211,0.00019726,2]
[400572604,1767729042980,-340.0,0.00019973,3]
[400572606,1767729042990,-210.16908342,0.0002,2]
[400572608,1767729043000,-1121.524412,0.00020548,2]
[400572610,1767729043010,-660.30339917,0.00020862,13]
[400572612,1767729043020,-186.5,0.00020937,2]
[400572614,1767729043030,-2000.0,0.00021294,7]
[400572616,1767729043041,-484.45951332,0.00021585,2]
[400572618,1767729043051,-204.749226,0.00021918,2]
[400572620,1767729043060,-196.0,0.00022164,6]
[400572622,1767729043070,-3050.1,0.000222,7]
[400572624,1767729043080,-2000.0,0.00022229,7]
[400572626,1767729043089,-773.47117812,0.00022322,16]
[400572628,1767729043099,-156.04,0.00022325,2]
[400572630,1767729043108,-300.0,0.00022466,2]
[400572632,1767729043118,-186.5,0.00022611,2]
[400572634,1767729043127,-444.11,0.000229,2]
[400572637,1767729043136,-450.0,0.00023014,2]
[400572640,1767729043146,-2000.0,0.00023164,7]
[400572643,1767729043156,-2200.0,0.00023193,2]
[400572646,1767729043165,-2200.0,0.00023284,2]
[400572649,1767729043175,-2200.0,0.0002336,2]
[400572651,1767729043184,-2200.0,0.00023389,2]
[400572653,1767729043193,-500.0,0.0002346,2]
[400572655,1767729043202,-600.0,0.00023562,2]
[400572657,1767729043212,-530.35567774,0.00023585,2]
[400572659,1767729043223,-2200.0,0.00023586,2]
[400572661,1767729043233,-500.0,0.00023591,2]
[400572663,1767729043243,-2200.0,0.0002373,2]
[400572665,1767729043252,-500.0,0.00023771,2]
[400572667,1767729043261,-893.95242775,0.00023783,18]
[400572669,1767729043271,-632.0,0.00023816,2]
[400572671,1767729043281,-500.0,0.00023826,2]
[400572673,1767729043291,-632.0,0.0002383,2]
[400572675,1767729043300,-632.0,0.00023868,2]
[400572677,1767729043309,-500.0,0.00023911,2]
[400572679,1767729043318,-188.11386458,0.00023923,2]
[400572681,1767729043328,-2200.0,0.00023973,2]
[400572683,1767729043337,-1000.0,0.00024,2]
[400572685,1767729043346,-1000.0,0.00024,2]
[400572687,1767729043355,-1000.0,0.00024,2]
[400572688,1767729043364,-1000.0,0.00024,2]
[400572690,1767729043373,-1000.0,0.00024,2]
[400572692,1767729043382,-1000.0,0.00024,2]
[400572695,1767729043391,-1000.0,0.00024,2]
[400572696,1767729043400,-1000.0,0.00024,2]
[400572698,1767729043411,-1000.0,0.00024,2]
[400572701,1767729043420,-1000.0,0.00024,2]
[400572702,1767729043430,-530.254158,0.00024,2]
[400572704,1767729043439,-632.0,0.00024023,2]
[400572706,1767729043449,-632.0,0.00024041,2]
[400572709,1767729043458,-2200.0,0.00024056,2]
[400572711,1767729043468,-2200.0,0.00024062,2]
[400572713,1767729043477,-632.0,0.00024095,2]
[400572715,1767729043487,-2000.0,0.000241,7]
[400572717,1767729043496,-22465.31,0.000241,2]
[400572719,1767729043506,-284.75,0.000241,7]
[400572721,1767729043516,-240.04,0.000241,7]
[400572723,1767729043525,-750.0,0.0002411,2]
[400572725,1767729043535,-632.0,0.00024188,2]
[400572727,1767729043544,-500.0,0.00024212,2]
[400572729,1767729043553,-186.5,0.00024285,2]
[400572731,1767729043562,-632.0,0.00024305,2]
[400572733,1767729043571,-199.0,0.00024356,13]
[400572735,1767729043581,-632.0,0.00024395,2]
[400572737,1767729043590,-2200.0,0.00024422,2]
[400572739,1767729043599,-2200.0,0.00024431,2]
[400572741,1767729043609,-500.0,0.00024445,2]
[400572743,1767729043618,-1000.0,0.00024477,30]
[400572745,1767729043628,-1000.0,0.00024477,30]
[400572747,1767729043637,-1000.0,0.00024477,30]
[400572749,1767729043647,-1000.0,0.00024477,30]
[400572751,1767729043656,-1000.0,0.00024477,30]
[400572753,1767729043665,-1000.0,0.00024477,30]
[400572755,1767729043674,-1000.0,0.00024477,30]
[400572757,1767729043683,-1000.0,0.00024477,30]
[400572759,1767729043692,-1000.0,0.00024477,30]
[400572761,1767729043702,-249.08951975,0.00024522,2]
[400572763,1767729043711,-632.0,0.00024549,2]
[400572765,1767729043720,-2200.0,0.00024573,2]
[400572767,1767729043730,-2827.11,0.000246,14]
[400572769,1767729043739,-15905.50371464,0.000246,3]
[400572771,1767729043748,-2200.0,0.00024624,2]
[400572773,1767729043758,-632.0,0.0002463,2]
[400572775,1767729043768,-500.0,0.00024636,2]
[400572777,1767729043778,-900.0,0.00024658,2]
[400572779,1767729043787,-200.0,0.00024658,2]
[400572781,1767729043796,-380.0,0.00024658,2]
[400572783,1767729043805,-475.0,0.00024658,30]
[400572785,1767729043817,-475.0,0.00024658,30]
[400572787,1767729043827,-475.0,0.00024658,30]
[400572789,1767729043837,-475.0,0.00024658,30]
[400572791,1767729043846,-475.0,0.00024658,30]
[400572793,1767729043856,-475.0,0.00024658,30]
[400572796,1767729043868,-475.0,0.00024658,30]
[400572798,1767729043878,-475.0,0.00024658,30]
[400572799,1767729043887,-475.0,0.00024658,30]
[400572801,1767729043897,-475.0,0.00024658,30]
[400572803,1767729043907,-475.0,0.00024658,30]
[400572806,1767729043917,-475.0,0.00024658,30]
[400572807,1767729043926,-475.0,0.00024658,30]
[400572809,1767729043935,-475.0,0.00024658,30]
[400572811,1767729043944,-475.0,0.00024658,30]
[400572813,1767729043954,-475.0,0.00024658,30]